[Event "26th Triest Festival 2024"]
[Site "Triest"]
[Date "2024.09.02"]
[Round "3.6"]
[White "Beletic, Daniel"]
[Black "Zhou, Yang-Fan"]
[Result "0-1"]
[Annotator "TA"]
[ECO "E76"]
[WhiteElo "2260"]
[BlackElo "2437"]
[PlyCount "71"]
[EventDate "2024.09.02"]
[EventType "swiss"]
[EventCountry "ITA"]
[SourceTitle "playchess.com"]
[Source "ChessBase"]
[SourceQuality "1"]
[TimeControl "5400+30"]

{[%evp 18,71,0,0,0,0,79,-16,45,47,63,52,81,0,116,118,128,128,158,155,218,116,118,128,130,122,124,0,0,0,0,0,45,35,81,81,85,12,11,18,18,0,20,0,0,-77,-90,-89,-91,-89,-22,-26,-29,-50,-25,-69]} 1. d4 {[%emt 0:02:27]} Nf6 {[%emt 0:01:49]} 2. c4 {[%emt 0:00:34]} g6 {[%emt 0:00:06]} 3. Nc3 {[%emt 0:00:12]} Bg7 {[%emt 0:00:04]} 4. e4 {[%emt 0:00:23]} O-O {[%emt 0:00:19]} 5. f4 {[%emt 0:00:42]} d6 {[%emt 0:00:07]} 6. Nf3 {[%emt 0:00:17]} c5 {[%emt 0:00:04]} 7. d5 {[%emt 0:00:15]} e6 {[%emt 0:00:06]} 8. dxe6 {[%emt 0:00:24]} fxe6 {[%emt 0:00:20]} 9. Bd3 {[%emt 0:00:19]} Nc6 {[%emt 0:00:12]} 10. O-O {[%emt 0:00:17]} b6 {[%emt 0:00:17]} 11. Ng5 {[%emt 0:01:26]} Nh5 {[%emt 0:12:15]} (11... Qe7 $11) 12. g3 {[%emt 0:11:40]} (12. e5 $1 $16 {[%cal Og5h7] Strongly threatening Nxh7!} dxe5 13. Be4 (13. Nxh7 Qd4+ 14. Kh1 Rd8 $14)) 12... Qe7 {[%emt 0:07:33] [#]} (12... Bd4+ $11 13. Kh1 Nf6) 13. e5 $1 $14 {[%emt 0:00:39][%cal Og5h7] And now Nxh7! would win.} dxe5 {[%emt 0:01:21] Black is weak on the light squares} 14. Be4 $1 {[%emt 0:08:20]} Bb7 {[%emt 0:18:46] [#]} 15. Nxh7 {[%emt 0:02:07]} ({White should play} 15. Nxe6 $1 $16 Nd4 (15... Qxe6 $2 16. Bd5 $18) (15... exf4 16. Nxf8) 16. Bxb7 (16. Nxf8 Bxe4 17. Nxe4 exf4 $16) 16... Qxb7 17. Nxf8 Rxf8 18. f5) 15... exf4 {[%emt 0:01:07]} (15... Rf5 $1 $11 16. Nd5 exd5 17. Bxf5 Nxf4 18. Bxg6 Qe6 (18... Nxg6 $2 19. Bg5 $16)) 16. Nxf8 $16 {[%emt 0:04:24]} Rxf8 {[%emt 0:01:54]} 17. Bxf4 {[%emt 0:03:09]} Bd4+ {[%emt 0:06:18]} 18. Kg2 $1 {[%emt 0:16:46]} Na5 {[%emt 0:01:41] [#]} (18... Rf5 $16 {is a better defense.}) 19. Qf3 {[%emt 0:04:56]} (19. Qe2 $1 $18) 19... Nxf4+ {[%emt 0:07:21]} 20. gxf4 {[%emt 0:01:53]} Bxe4 {[%emt 0:00:16]} 21. Qxe4 {[%emt 0:00:59]} Nxc4 {[%emt 0:00:14]} 22. Kh1 {[%emt 0:07:25]} ({White must play} 22. Qxg6+ $16 Qg7 23. Qxg7+ Bxg7 24. Rf3) 22... Kg7 {[%emt 0:04:37][%cal Oc4d2] Threatens to win with ...Nd2!} 23. Rg1 {[%emt 0:11:13]} Rf5 $36 {[%emt 0:02:54][%cal Oc4d6][%mdl 2048] Black has some pressure. Active counter play!} ({Weaker is} 23... Nxb2 24. Qxg6+ (24. Rxg6+ Kf7 $18) 24... Kh8 25. Qh6+ Qh7 26. Qxf8+) (23... Bxg1 $2 24. Rxg1 Qf6 25. Qxc4 $18) 24. Rg2 {[%emt 0:04:15]} Nd6 {[%emt 0:09:45]} (24... Qd6 $5) 25. Qf3 {[%emt 0:02:15]} (25. Qd3 {is interesting.} e5 26. Ne2 Rf6 27. fxe5 Qxe5 28. Nxd4 cxd4 29. Rg4) 25... Qb7 {[%emt 0:07:16]} (25... e5 $14 {was preferrable.}) 26. Qxb7+ {[%emt 0:00:41]} Nxb7 {[%emt 0:00:02]} 27. Rg4 {[%emt 0:04:42]} (27. Ne2 $16) 27... Nd6 $11 {[%emt 0:03:20]} 28. Re1 {[%emt 0:00:13]} Kf7 {[%emt 0:00:51]} 29. Nd1 {[%emt 0:02:12]} c4 {[%emt 0:02:22]} 30. Nc3 {[%emt 0:01:51]} b5 {[%emt 0:01:18]} 31. Rd1 {[%emt 0:05:23] [#]} (31. Re2 $11 {remains equal.}) 31... Bxc3 $1 $17 {[%emt 0:00:04]} 32. bxc3 {[%emt 0:00:41]} Ne4 {[%emt 0:00:01]} 33. Kg2 {[%emt 0:00:11] Prevents Nf2.} Nxc3 {[%emt 0:00:16]} (33... Rd5 $17 34. Rc1 (34. Rxd5 $2 exd5 35. Rh4 Kg7 $19) 34... Rd3) 34. Rd7+ $11 {[%emt 0:00:06]} Kf6 {[%emt 0:00:08] White must now prevent ...a5.} 35. Rxa7 {[%emt 0:00:22]} Rd5 {[%emt 0:01:08]} 36. Rh4 {[%emt 0:04:51] Weighted Error Value: White=0.33/Black=0.26 (precise) .  Mistake:       	White=6     	Black=6      Inaccurate:     	White=1     	Black=2      OK:         	White=6     	Black=7      Best:        	White=3     	Black=2      Strong:       	White=2     	Black=1      Brilliant:      	White=1     	---} 0-1

[Event "26th Triest Festival 2024"]
[Site "Triest"]
[Date "2024.09.02"]
[Round "3.8"]
[White "Goh, Wei Ming Kevin"]
[Black "Simonetto, Andrea"]
[Result "0-1"]
[Annotator "TA"]
[ECO "B12"]
[WhiteElo "2449"]
[BlackElo "2323"]
[PlyCount "118"]
[EventDate "2024.09.02"]
[EventType "swiss"]
[EventCountry "ITA"]
[SourceTitle "playchess.com"]
[Source "ChessBase"]
[SourceQuality "1"]
[TimeControl "5400+30"]

{[%evp 43,118,-64,-38,-67,-60,-67,-71,-61,-63,-84,-69,-70,-66,-100,-88,-104,-103,-163,-158,-151,-120,-246,-250,-268,-225,-247,-137,-234,-221,-347,-344,-348,-351,-350,-353,-346,-321,-276,-261,-252,-193,-408,-318,-652,-650,-864,-857,-841,-835,-810,-803,-1042,-434,-766,-247,-242,-222,-227,-220,-635,-505,-438,-445,-339,0,-219,-162,-887,-798,-1297,-1278,-1231,-1210,-1095,-871,-750,-670]} 1. e4 {[%emt 0:02:05]} c6 {[%emt 0:00:13]} 2. d4 {[%emt 0:00:08]} d5 {[%emt 0:00:05]} 3. e5 {[%emt 0:00:22]} Bf5 {[%emt 0:00:06]} 4. Bd3 {[%emt 0:02:20]} Bxd3 {[%emt 0:01:01]} 5. Qxd3 {[%emt 0:00:02]} Qa5+ {[%emt 0:01:57]} 6. c3 {[%emt 0:00:35]} e6 {[%emt 0:00:54]} 7. Ne2 {[%emt 0:00:38]} Qa6 {[%emt 0:04:15] B12: Caro-Kann: Advance Variation.} 8. Qd1 {[%emt 0:00:23]} c5 {[%emt 0:01:56]} 9. O-O {[%emt 0:01:33]} Nc6 {[%emt 0:01:00]} 10. Nd2 {[%emt 0:06:45]} cxd4 {[%emt 0:13:25]} 11. cxd4 {[%emt 0:00:37]} Qd3 {[%emt 0:01:04]} 12. Nf3 {[%emt 0:00:07]} Qxd1 {[%emt 0:00:30]} 13. Rxd1 {[%emt 0:00:02]} Be7 $146 {[%emt 0:07:47]} ({Predecessor:} 13... Nge7 14. b3 a5 15. Nc3 Nc8 16. Nb5 Kd7 17. Bb2 N8a7 18. Nc3 b5 19. Rac1 Be7 {1-0 Francois,G (1738)-De Andrade,M (1299) Charleville Mezieres op 14th 2017 (1)}) 14. Bd2 {[%emt 0:03:07]} Kd7 {[%emt 0:03:31]} 15. b4 {[%emt 0:04:59]} a6 {[%emt 0:04:23]} 16. Rdb1 {[%emt 0:01:45]} b5 {[%emt 0:05:53]} 17. a4 {[%emt 0:13:17]} Nh6 {[%emt 0:02:46]} 18. Bc3 {[%emt 0:16:56]} Nf5 {[%emt 0:08:40]} 19. g4 {[%emt 0:04:51]} Nh4 {[%emt 0:02:53]} 20. Nxh4 {[%emt 0:04:29]} Bxh4 {[%emt 0:00:07]} 21. f4 {[%emt 0:00:18]} Be7 {[%emt 0:01:02]} 22. Kg2 {[%emt 0:02:22]} Rab8 {[%emt 0:05:49]} 23. h3 {[%emt 0:04:27]} h5 {[%emt 0:02:12]} 24. Be1 {[%emt 0:01:11]} hxg4 {[%emt 0:03:48]} 25. hxg4 {[%emt 0:00:10]} g6 {[%emt 0:01:16]} 26. Rb2 {[%emt 0:06:22]} Rhc8 {[%emt 0:04:32]} 27. axb5 {[%emt 0:01:24]} axb5 {[%emt 0:00:10]} 28. Kf3 {[%emt 0:10:04]} Ra8 {[%emt 0:00:40]} 29. Rab1 {[%emt 0:02:16]} Ra3+ {[%emt 0:00:38]} 30. Rb3 {[%emt 0:00:13]} (30. Kg2 $17 {was worth a try.}) 30... Rca8 $19 {[%emt 0:00:55]} (30... Bxb4 $2 31. Bxb4 Rxb3+ 32. Rxb3 $18) 31. Bc3 {[%emt 0:04:21]} R8a4 {[%emt 0:02:09]} (31... Bxb4 32. Rxb4 Nxb4 33. Rxb4 $17) 32. Kf2 {[%emt 0:02:43]} (32. Rxa3 $17 {is a better defense.} Rxa3 33. Kf2) 32... Rxb3 $19 {[%emt 0:02:27]} 33. Rxb3 {[%emt 0:00:01]} Bxb4 {[%emt 0:00:11]} (33... Nxb4 34. f5 $17) 34. Bb2 {[%emt 0:00:31]} Ra5 {[%emt 0:01:58]} (34... Na5 $19 35. Rh3 Ra2) 35. f5 {[%emt 0:00:34]} (35. Nc1 $17) 35... Bd2 $19 {[%emt 0:05:40]} (35... exf5 36. gxf5 gxf5 37. Nf4 $15) 36. f6 {[%emt 0:01:53]} (36. Rd3 $142 Bg5 37. Bc1 Bh4+ 38. Kf3) 36... b4 $19 {[%emt 0:01:09]} 37. Rd3 {[%emt 0:01:12]} Bg5 {[%emt 0:00:32]} 38. Ke1 {[%emt 0:00:16]} Ra2 {[%emt 0:01:35]} 39. Rb3 {[%emt 0:00:02]} Ra7 {[%emt 0:04:11]} 40. Kd1 {[%emt 0:02:07]} Rb7 {[%emt 0:01:01]} 41. Rh3 {[%emt 0:02:27]} Na5 {[%emt 0:00:16]} 42. Kc2 $2 {[%emt 0:01:04]} (42. Rh7 {was called for.} Kc6 43. Rh8) 42... Kc6 {[%emt 0:01:32]} 43. Bc1 $2 {[%emt 0:00:11]} (43. Rh8) 43... b3+ $19 {[%emt 0:00:59]} 44. Kb1 {[%emt 0:00:48]} Bxc1 {[%emt 0:00:28]} 45. Nxc1 {[%emt 0:00:29]} b2 {[%emt 0:02:54]} 46. Rc3+ {[%emt 0:00:02]} Nc4 {[%emt 0:00:06]} 47. Nb3 {[%emt 0:00:12]} Rb4 {[%emt 0:00:56]} (47... Ra7 $142 {Threatens to win with ...Kb5.} 48. Rc2 Kb5 49. Rxb2 Nxb2 50. Kxb2 Kc4 51. Nd2+ Kxd4) 48. Na5+ $19 {[%emt 0:00:59]} Kb5 $2 {[%emt 0:01:06]} (48... Kd7 {( -> ...Nd2+)} 49. Nxc4 dxc4) 49. Nxc4 $19 {[%emt 0:00:38]} Rxc4 {[%emt 0:00:11]} (49... dxc4 50. d5 Kc5 (50... exd5 51. e6 $11) 51. dxe6 fxe6 52. Rc2 $11) 50. Rb3+ {[%emt 0:00:39] [#]} Rb4 $1 {[%emt 0:00:09]} 51. Ra3 $2 {[%emt 0:00:31]} (51. Rxb4+ $2 Kxb4 52. Kxb2 Kc4 $19) (51. Rc3 Rxd4 52. Rc7 Rxg4 53. Kxb2) 51... Rxd4 {[%emt 0:01:40]} 52. Ra7 {[%emt 0:00:22]} Rxg4 {[%emt 0:00:41]} 53. Rxf7 {[%emt 0:00:01] [#]} Re4 $2 {[%emt 0:00:36]} (53... Kc4 $1 $19 {[%cal Rc4d4] And now ...Kd4 would win.} 54. Rb7 d4) 54. Rb7+ $2 {[%emt 0:00:14]} (54. Rf8 $11 Kc4 (54... Rxe5 $2 55. f7 $18) 55. f7) 54... Kc4 $19 {[%emt 0:00:44]} 55. f7 $2 {[%emt 0:00:39]} (55. Rxb2 Re1+ (55... Rxe5 $2 {loses.} 56. Rf2 $18) 56. Ka2) 55... Rf4 $19 {[%emt 0:00:02]} (55... Rxe5 56. f8=Q (56. f8=R g5 $18) 56... Re1+ 57. Kxb2 Re2+ 58. Kc1 d4 59. Qb4+ Kd5 60. Qb5+ Ke4 61. Qxe2+) 56. Re7 {[%emt 0:00:49]} Kc3 {[%emt 0:00:12]} 57. Rc7+ {[%emt 0:00:55]} Kd4 {[%emt 0:00:01]} 58. Kxb2 {[%emt 0:00:26]} Kxe5 {[%emt 0:00:11]} 59. Kc3 {[%emt 0:00:05]} g5 {[%emt 0:02:04]} 0-1

[Event "26th Triest Festival 2024"]
[Site "Triest"]
[Date "2024.09.02"]
[Round "3.9"]
[White "Wong, Zhenyong Jayden"]
[Black "Motola, Jacopo"]
[Result "1-0"]
[Annotator "TA"]
[ECO "A11"]
[WhiteElo "2397"]
[BlackElo "2207"]
[PlyCount "67"]
[EventDate "2024.09.02"]
[EventType "swiss"]
[EventCountry "ITA"]
[SourceTitle "playchess.com"]
[Source "ChessBase"]
[SourceQuality "1"]
[TimeControl "5400+30"]

{[%evp 12,67,15,17,25,24,29,35,34,21,27,20,72,24,13,25,40,43,59,46,47,47,100,98,174,178,175,179,205,201,202,211,241,240,227,232,259,243,232,239,255,236,296,290,395,416,502,497,683,662,845,796,733,782,843,795,755,674]} 1. Nf3 {[%emt 0:01:52]} d5 {[%emt 0:00:12]} 2. g3 {[%emt 0:00:16]} Bg4 {[%emt 0:00:46]} 3. Bg2 {[%emt 0:00:14]} Nd7 {[%emt 0:00:34]} 4. c4 {[%emt 0:04:07]} c6 {[%emt 0:06:20]} 5. cxd5 {[%emt 0:05:36]} cxd5 {[%emt 0:00:12]} 6. Nc3 {[%emt 0:04:23]} e6 {[%emt 0:02:32]} 7. Qb3 {[%emt 0:02:25]} Bxf3 {[%emt 0:02:25]} 8. Bxf3 {[%emt 0:00:17]} Qb6 {[%emt 0:01:08]} 9. Qxb6 {[%emt 0:01:53]} Nxb6 {[%emt 0:00:34] White is slightly better.} 10. d3 {[%emt 0:00:35]} Rc8 {[%emt 0:01:32]} 11. O-O {[%emt 0:02:09]} Nf6 {[%emt 0:05:02]} (11... a6 $11 {keeps the balance.}) 12. Bf4 {[%emt 0:09:10]} (12. Be3 $16) 12... a6 $11 {[%emt 0:04:12] Dodges Nb5} 13. Rfc1 {[%emt 0:01:50]} Bc5 {[%emt 0:16:42]} 14. Rc2 {[%emt 0:04:26]} Kd7 {[%emt 0:04:57]} 15. Rac1 {[%emt 0:04:24]} Bd6 {[%emt 0:03:26]} 16. Be3 {[%emt 0:01:08] This pair of bishops is nice.} Rc6 {[%emt 0:00:51] White now steadily converts the win.} (16... Na8 $1 $14) 17. Bd4 $1 $16 {[%emt 0:07:12]} Bc5 {[%emt 0:13:29] [#]} (17... Rb8 $16 {was necessary.}) 18. Bxc5 $1 $18 {[%emt 0:05:37]} Rxc5 {[%emt 0:00:07] [#]} 19. Nxd5 $1 {[%emt 0:00:53][%mdl 512]} Rxd5 {[%emt 0:00:14]} (19... Rxc2 20. Nxf6+) 20. Rc7+ {[%emt 0:01:49]} Kd6 {[%emt 0:02:48]} 21. Bxd5 {[%emt 0:04:53]} (21. Rxf7 Rc5 22. Rxc5 Kxc5) 21... exd5 {[%emt 0:01:14]} 22. Rxf7 {[%emt 0:01:24]} Nbd7 {[%emt 0:00:21]} 23. Rxg7 {[%emt 0:01:15]} b5 {[%emt 0:00:27]} 24. f4 {[%emt 0:05:43][%cal Oe2e4] Threatens to win with e4!} d4 {[%emt 0:01:07]} 25. Kf2 {[%emt 0:04:46]} Nd5 {[%emt 0:08:24] [#]} 26. a4 $1 {[%emt 0:09:37]} bxa4 {[%emt 0:01:35]} (26... Nc5 27. axb5) 27. Rc4 {[%emt 0:00:08][%csl LRa4,LRd4]} Nc5 {[%emt 0:00:14]} 28. Ra7 {[%emt 0:00:33]} ({Less strong is} 28. Rxd4 Ne6 29. Rxd5+ (29. Rxa4 Nxg7 30. Rxa6+ Kc5 $19) 29... Kxd5 $16) 28... Rb8 {[%emt 0:01:13]} 29. Rxh7 {[%emt 0:01:19] And now Rh6+ would win. White is clearly winning.} ({And not} 29. Rxd4 Rxb2 30. Rxh7 Ke6 $11) 29... Kc6 {[%emt 0:13:02]} 30. Rxd4 {[%emt 0:04:35] aiming for Rh6+.} Nb4 {[%emt 0:06:46][%cal Ob4d3]} 31. Rc4 {[%emt 0:05:14]} Nbxd3+ {[%emt 0:01:23]} 32. exd3 {[%emt 0:00:21] Hoping for Rh6+.} Rxb2+ {[%emt 0:00:02]} 33. Ke3 {[%emt 0:03:07] Black must now prevent Kd4.} Rb3 {[%emt 0:01:05]} 34. Rh5 {[%emt 0:04:19] Weighted Error Value: White=0.05 (flawless) /Black=0.43.  Mistake:       	White=1     	Black=3      Inaccurate:     	---       	Black=2      OK:         	White=13    	Black=7      Best:        	White=1     	---        Strong:       	White=1     	---        Brilliant:      	White=1     	---} 1-0

[Event "26th Triest Festival 2024"]
[Site "Triest"]
[Date "2024.09.02"]
[Round "3.10"]
[White "Willems, Niels"]
[Black "Djuric, Stefan"]
[Result "1-0"]
[Annotator "TA"]
[ECO "A39"]
[WhiteElo "2384"]
[BlackElo "2208"]
[PlyCount "129"]
[EventDate "2024.09.02"]
[EventType "swiss"]
[EventCountry "ITA"]
[SourceTitle "playchess.com"]
[Source "ChessBase"]
[SourceQuality "1"]
[TimeControl "5400+30"]

{[%evp 20,129,44,29,27,30,32,26,29,38,30,41,45,25,50,41,47,39,54,0,0,0,0,5,16,24,54,55,54,52,52,45,316,304,399,422,551,542,537,524,521,490,512,489,515,485,516,515,561,566,586,593,649,658,566,512,572,518,694,675,708,702,727,710,877,861,882,821,958,937,1034,1075,1054,965,1058,1034,966,732,1107,1122,1246,1177,1201,1005,1051,1040,1177,1157,1241,1114,1210,1227,1091,1135,1780,1702,2701,5285,7541,6548,29980,29979,29981,29980,29981,29982,29985,29977,29989,29990,29990,29991]} 1. c4 {[%emt 0:01:43]} g6 {[%emt 0:10:13]} 2. Nc3 {[%emt 0:00:31]} c5 {[%emt 0:00:26]} 3. Nf3 {[%emt 0:02:46]} Bg7 {[%emt 0:00:40]} 4. g3 {[%emt 0:01:26]} Nc6 {[%emt 0:00:04]} 5. Bg2 {[%emt 0:00:09]} Nf6 {[%emt 0:00:52]} 6. d4 {[%emt 0:05:43]} cxd4 {[%emt 0:00:09]} 7. Nxd4 {[%emt 0:00:05]} O-O {[%emt 0:00:02]} 8. O-O {[%emt 0:00:18]} Nxd4 {[%emt 0:00:38]} 9. Qxd4 {[%emt 0:00:07]} d6 {[%emt 0:00:01]} 10. Qd3 {[%emt 0:01:48]} a6 {[%emt 0:00:35]} 11. Bg5 {[%emt 0:03:42]} Rb8 {[%emt 0:01:04]} 12. Rac1 {[%emt 0:00:51]} b5 {[%emt 0:03:04]} 13. b3 {[%emt 0:01:06]} bxc4 {[%emt 0:07:08] White has an edge.} 14. Qxc4 {[%emt 0:00:35]} Qa5 {[%emt 0:02:22]} 15. Bd2 {[%emt 0:05:05]} Be6 {[%emt 0:04:30]} 16. Qd3 {[%emt 0:01:29][%cal Oc3d5]} Rfe8 {[%emt 0:11:24]} 17. Rc2 {[%emt 0:05:42][%cal Oc3d5]} Qh5 {[%emt 0:05:41]} 18. Qxa6 {[%emt 0:07:07]} d5 {[%emt 0:02:32]} 19. f3 {[%emt 0:17:09]} (19. h4 $14) 19... Ra8 $11 {[%emt 0:09:50]} 20. Qd3 {[%emt 0:02:02]} Bf5 {[%emt 0:01:26]} 21. e4 $1 {[%emt 0:00:09]} dxe4 {[%emt 0:00:03]} 22. fxe4 {[%emt 0:03:51]} Red8 {[%emt 0:02:37]} (22... Rad8 {simplifies} 23. Qb5 Rb8 24. Bf3 Rxb5 25. Bxh5 Bxe4 26. Nxe4 Nxh5 27. b4 Bd4+) 23. Qf3 {[%emt 0:02:48]} (23. Nd5 Rxd5 24. Qc4 Ng4 $19) 23... Bg4 {[%emt 0:21:17]} 24. Qf4 {[%emt 0:02:49] Strongly threatening e5.} Rac8 {[%emt 0:00:01]} 25. e5 {[%emt 0:05:53]} Bf5 $2 {[%emt 0:01:41][%mdl 8192] This move loses the game for Black.} (25... Nd7 $1 $14 26. Qxf7+ Kh8) 26. exf6 $18 {[%emt 0:01:16]} Bxf6 {[%emt 0:00:03]} 27. Rcc1 {[%emt 0:00:56]} Rd4 {[%emt 0:02:41]} 28. Ne4 {[%emt 0:09:04]} Rcd8 {[%emt 0:00:46] [#] White must now prevent ...Bxe4.} 29. Be3 {[%emt 0:00:38] And now Nxf6+ would win.} Bxe4 {[%emt 0:05:03]} 30. Bxe4 {[%emt 0:00:09]} R4d6 {[%emt 0:00:44][%cal Bd4d6,Bd6e6,Be6e5][%mdl 32]} 31. Rc5 {[%emt 0:07:25]} Qe2 {[%emt 0:00:18]} 32. Rc2 {[%emt 0:00:08]} Qa6 {[%emt 0:00:12]} 33. Qf3 {[%emt 0:04:13]} Re6 {[%emt 0:00:38]} 34. Kg2 {[%emt 0:01:34]} Qa5 {[%emt 0:00:49]} 35. Bc5 {[%emt 0:00:54]} Re5 {[%emt 0:05:01]} 36. b4 {[%emt 0:00:29]} Qa6 {[%emt 0:00:18]} 37. Rcf2 {[%emt 0:01:56]} Qe6 {[%emt 0:00:38]} 38. Bc2 {[%emt 0:01:22]} Qa6 {[%emt 0:00:37]} 39. a4 {[%emt 0:00:12]} Kg7 {[%emt 0:02:11]} 40. Rd1 {[%emt 0:01:41]} Rxd1 {[%emt 0:00:31]} 41. Qxd1 {[%emt 0:00:16]} Qe6 {[%emt 0:00:21]} 42. Bb3 {[%emt 0:00:30]} Qc6+ {[%emt 0:00:18]} 43. Qf3 {[%emt 0:00:01]} Qd7 {[%emt 0:00:03]} 44. Bc2 {[%emt 0:01:02][%cal Bb3c2,Bc2e4,Be4f3][%mdl 32]} Re1 {[%emt 0:00:21]} 45. a5 {[%emt 0:00:23]} Ra1 {[%emt 0:00:59]} 46. Be4 {[%emt 0:01:04]} Qe6 {[%emt 0:01:08]} 47. Qd3 {[%emt 0:01:44]} h5 {[%emt 0:00:26]} 48. Bd4 {[%emt 0:00:41]} Re1 {[%emt 0:00:15]} 49. Bxf6+ {[%emt 0:00:03]} exf6 {[%emt 0:00:04]} 50. Re2 {[%emt 0:01:32]} Ra1 {[%emt 0:01:35]} 51. Bf3 {[%emt 0:01:11]} Qc8 {[%emt 0:00:12]} 52. Rc2 {[%emt 0:00:17]} Qe6 {[%emt 0:00:09]} 53. Qc3 {[%emt 0:00:32]} Rb1 {[%emt 0:00:18]} 54. Rb2 {[%emt 0:00:15]} Re1 {[%emt 0:00:05]} 55. Kf2 {[%emt 0:00:35]} Re5 {[%emt 0:00:03]} 56. Re2 {[%emt 0:00:12]} h4 {[%emt 0:00:15]} 57. Rxe5 {[%emt 0:00:08]} hxg3+ {[%emt 0:00:15]} 58. hxg3 {[%emt 0:00:02]} fxe5 {[%emt 0:00:01][%cal Bf6e5,Be5e4][%mdl 32]} 59. b5 {[%emt 0:00:42][%cal Bb4b5,Bb5b6,Bb6b7][%mdl 32] [#] White threatens b6 and mate.} Kh7 {[%emt 0:00:37]} 60. b6 {[%emt 0:00:34] White mates.} e4 {[%emt 0:00:09]} 61. Bg2 {[%emt 0:01:04]} Qa2+ {[%emt 0:00:21]} 62. Kg1 {[%emt 0:01:51]} f5 {[%emt 0:00:57]} 63. Bf1 {[%emt 0:00:00]} Qb1 {[%emt 0:00:12]} 64. Qc7+ {[%emt 0:00:00]} Kh6 {[%emt 0:00:05]} 65. b7 {[%emt 0:00:00] Weighted Error Value: White=0.04 (flawless) /Black=0.32.  Loses game:     	---       	Black=1      Mistake:       	White=1     	---        Inaccurate:     	---       	Black=4      OK:         	White=18    	Black=12     Best:        	White=2     	Black=2      Strong:       	White=1     	---} 1-0